bitfinex-derivatives/quotes_ETHF0:USTF0_20250621
["timestamp","ask_amount","ask_price","bid_price","bid_amount"]
[1750533309116,3.2078,2391.6,2390.9,3.2078]
[1750533309318,9.8605,2391.5,2390.9,3.2078]
[1750533309514,0.8363,2391.0,2390.9,3.2078]
[1750533309709,9.8605,2391.5,2390.9,3.2078]
[1750533310120,0.8363,2391.0,2390.9,3.2078]
[1750533310521,9.8605,2391.5,2390.9,3.2078]
[1750533310522,0.83628,2391.1,2390.9,3.2078]
[1750533310721,1.344,2391.3,2390.9,3.2078]
[1750533310923,0.8363,2391.0,2390.9,3.2078]
[1750533311317,0.83628,2391.1,2390.9,3.2078]
[1750533311927,0.8363,2391.0,2390.9,3.2078]
[1750533312626,0.8364,2390.7,2390.6,1.3276]
[1750533312830,0.83639,2390.8,2390.6,4.5354]
[1750533313025,2.09058,2391.2,2390.6,4.5354]
[1750533313219,0.8364,2390.8,2390.6,5.37183]
[1750533313524,0.83635,2390.9,2390.6,6.74133]
[1750533313924,0.83637,2390.8,2390.6,5.9049]
[1750533314124,0.83637,2390.8,2390.6,6.74133]
[1750533315028,3.2078,2391.3,2390.6,15.86099617]
[1750533315328,0.83626,2391.1,2391.0,3.2078]
[1750533315528,3.2078,2391.3,2390.9,0.83632]
[1750533315529,0.8363,2391.0,2390.9,0.83632]
[1750533315828,3.2078,2391.3,2391.0,0.8363]
[1750533316025,3.2078,2391.3,2390.9,3.2078]
[1750533316026,3.2078,2391.3,2390.9,10.3448]
[1750533316228,0.83618,2391.4,2391.2,3.2078]
[1750533316430,0.83621,2391.3,2391.2,3.2078]
[1750533317317,0.83621,2391.3,2391.1,0.83625]
[1750533317517,0.83624,2391.2,2391.0,2.14369]
[1750533317718,0.83626,2391.1,2391.0,8.4444]
[1750533317925,0.83626,2391.1,2391.0,7.137]
[1750533318331,0.83625,2391.2,2391.0,7.9733]
[1750533319428,0.83621,2391.3,2391.1,0.83626]
[1750533319829,0.83623,2391.2,2391.0,9.31608]
[1750533320034,0.83626,2391.1,2391.0,7.137]
[1750533320219,0.83626,2391.1,2391.0,7.20547599]
[1750533320532,12.97326,2391.1,2391.0,0.06847599]
[1750533321129,0.83644,2390.6,2390.5,3.2078]
[1750533321336,0.83643,2390.7,2390.5,3.2078]
[1750533321629,0.83639,2390.8,2390.5,3.2078]
[1750533321830,0.6881,2391.2,2390.5,3.2078]
[1750533322032,0.83633,2391.0,2390.8,3.2078]
[1750533322426,0.83632,2391.0,2390.8,4.04417]
[1750533322627,0.83633,2390.9,2390.8,3.2078]
[1750533322826,0.8364,2390.7,2390.6,1.301]
[1750533323032,0.83644,2390.6,2390.5,3.2078]
[1750533323228,6.60799,2391.0,2390.5,4.04426]
[1750533323425,0.83643,2390.7,2390.5,4.04426]
[1750533323734,0.83634,2390.9,2390.5,3.2078]
[1750533323929,0.83634,2390.9,2390.7,0.83638]
[1750533324131,0.83634,2390.9,2390.8,0.83637]
[1750533325325,0.83637,2390.8,2390.7,0.83638]
[1750533325628,0.83635,2390.9,2390.8,0.83637]
[1750533325831,0.83635,2390.9,2390.7,0.83638]
[1750533326030,0.83635,2390.9,2390.6,1.4046]
[1750533326332,0.83636,2390.9,2390.8,0.83637]
[1750533327530,0.83638,2390.8,2390.7,0.83638]
[1750533328435,0.83636,2390.9,2390.7,0.83638]
[1750533328937,0.83632,2391.0,2390.9,0.83633]
[1750533329137,0.83632,2391.0,2390.9,0.55063]
[1750533329655,0.83633,2390.9,2390.8,1.50695]
[1750533330156,0.83633,2390.9,2390.8,0.6706]
[1750533331052,4.95609617,2391.0,2390.3,3.2078]
[1750533331351,2.09093,2390.8,2390.3,3.2078]
[1750533331543,0.83638,2390.8,2390.3,5.29915]
[1750533331744,0.83641,2390.7,2390.6,0.83643]
[1750533331951,0.83641,2390.7,2390.5,0.83645]
[1750533332149,0.83642,2390.7,2390.5,3.2078]
[1750533332354,0.83643,2390.7,2390.5,4.04426]
[1750533332554,0.83644,2390.6,2390.4,5.34138]
[1750533332749,0.83654,2390.3,2390.2,0.6706]
[1750533333456,0.83653,2390.4,2390.2,1.50717]
[1750533333854,0.6641,2390.5,2390.2,0.6706]
[1750533334050,1.50059,2390.5,2390.3,0.83653]
[1750533334357,1.50059,2390.5,2390.2,5.2227]
[1750533334358,0.83654,2390.3,2390.2,0.06847599]
[1750533334557,4.04434,2390.3,2390.2,0.06847599]
[1750533335059,5.46074,2390.3,2390.2,0.06847599]
[1750533335757,0.83661,2390.1,2390.0,1.0]
[1750533336057,0.83682,2389.5,2389.4,0.6652]
[1750533336259,26.443,2389.8,2389.1,3.2078]
[1750533336459,0.83684,2389.5,2389.2,0.83692]
[1750533336756,0.8369,2389.3,2389.1,4.04474]
[1750533337153,0.83693,2389.2,2389.1,3.2078]
[1750533337455,4.04461,2389.6,2389.3,0.83687]
[1750533337663,0.83683,2389.5,2389.3,0.83687]
[1750533338155,4.04461,2389.6,2389.1,3.2078]
[1750533338349,0.83684,2389.5,2389.2,1.3135]
[1750533338550,0.83688,2389.4,2389.2,1.3135]
[1750533338856,0.83688,2389.4,2389.2,2.15041]
[1750533339053,0.83685,2389.5,2389.2,1.3135]
[1750533339259,3.2078,2389.6,2389.2,1.3135]
[1750533339453,3.2078,2389.6,2389.3,0.83687]
[1750533339650,3.2078,2389.6,2389.2,1.3135]
[1750533339956,3.2078,2389.6,2389.1,3.2078]
[1750533340157,0.83693,2389.2,2389.1,3.2078]
[1750533340463,0.83693,2389.2,2389.0,7.97798]
[1750533340653,0.83696,2389.1,2389.0,1.3135]
[1750533340848,0.6468,2389.5,2388.9,8.4642]
[1750533341053,0.83697,2389.1,2388.9,9.30122]
[1750533341348,0.837,2389.0,2388.9,1.3232]
[1750533342051,2.0213,2389.5,2388.9,1.3232]
[1750533342256,0.837,2389.0,2388.9,1.3232]
[1750533342457,0.83699,2389.1,2388.9,2.16023]
[1750533342758,0.6468,2389.5,2389.0,3.2078]
[1750533342954,1.48363,2389.5,2389.3,0.83687]
[1750533343161,4.04446,2390.0,2389.4,5.29991]
[1750533343461,3.2078,2390.0,2389.5,7.8343]
[1750533343653,0.8367,2389.9,2389.7,0.83673]
[1750533343854,4.04447,2390.0,2389.8,0.83672]
[1750533344157,0.83668,2389.9,2389.8,0.83672]
[1750533344359,0.83668,2389.9,2389.7,0.83674]
[1750533344558,0.83672,2389.8,2389.7,0.83674]
[1750533344757,3.2078,2390.0,2389.7,0.83674]
[1750533345061,0.83672,2389.8,2389.7,0.83674]
[1750533345362,0.83675,2389.7,2389.6,1.3178]
[1750533345564,3.2078,2390.0,2389.1,3.2078]
[1750533345857,0.83673,2389.8,2389.6,0.83676]
[1750533346064,0.83673,2389.8,2389.7,1.3751]
[1750533346658,0.83672,2389.8,2389.7,1.3751]
[1750533347059,0.83669,2389.9,2389.7,1.3751]
[1750533347254,0.83669,2389.9,2389.7,2.21184]
[1750533347456,0.83672,2389.8,2389.7,1.3751]
[1750533347855,3.2078,2390.0,2389.6,3.2078]
[1750533348158,0.83689,2389.3,2389.2,2.0046]
[1750533348456,3.2078,2389.7,2388.9,3.9024]
[1750533348762,0.83692,2389.3,2389.0,2.19809]
[1750533349568,0.83693,2389.2,2389.0,2.19809]
[1750533349755,0.83696,2389.1,2389.0,1.3611]
[1750533350361,0.83699,2389.1,2388.9,4.73943]
[1750533350666,0.83699,2389.1,2389.0,1.3536]
[1750533350964,0.837,2389.0,2388.9,3.9024]
[1750533353060,0.837,2389.0,2388.9,4.73943]
[1750533353359,0.837,2389.0,2388.9,3.9024]
[1750533356067,0.837,2389.0,2388.9,3.2078]
[1750533356557,0.837,2389.0,2388.9,4.04483]
[1750533356757,10.3378,2389.4,2389.0,0.83697]
[1750533356957,0.83696,2389.1,2389.0,1.3458]
[1750533357360,0.83695,2389.2,2389.0,2.1828]
[1750533357554,0.83696,2389.1,2389.0,1.3458]
[1750533357759,0.83695,2389.2,2389.0,2.18278]
[1750533357965,0.83695,2389.2,2389.1,0.83696]
[1750533358164,0.83695,2389.2,2389.1,2.18276]
[1750533359068,0.837,2389.0,2388.9,3.2078]
[1750533360158,0.837,2389.0,2388.9,4.04483]
[1750533360363,0.837,2389.0,2388.9,3.2078]
[1750533361666,3.2078,2389.4,2388.9,3.2078]
[1750533361868,0.83691,2389.3,2389.2,0.06847599]
[1750533362166,3.2078,2389.4,2389.3,0.83689]
[1750533362167,4.04467,2389.4,2389.3,0.83689]
[1750533362367,4.04467,2389.4,2389.2,0.90537599]
[1750533362563,4.04467,2389.4,2389.3,1.9644]
[1750533362763,0.646,2389.6,2389.3,1.9644]
[1750533363070,0.83685,2389.5,2389.4,0.83685]
[1750533363274,0.83679,2389.6,2389.5,0.83682]
[1750533363968,0.83678,2389.7,2389.5,0.83682]
[1750533364170,0.83673,2389.8,2389.6,3.2078]
[1750533364373,0.6612,2390.1,2389.7,2.14753]
[1750533364671,0.83679,2389.6,2389.4,0.83683]
[1750533364872,0.83682,2389.5,2389.4,2.14763]
[1750533365170,0.83682,2389.6,2389.4,2.14763]
[1750533365372,0.83682,2389.5,2389.4,4.5186]
[1750533365667,2.09172,2389.9,2389.4,5.35546]
[1750533365968,2.09178,2389.9,2389.4,1.37927599]
[1750533366168,0.83681,2389.6,2389.5,0.83682]
[1750533366361,1.4259,2389.9,2389.4,4.58707599]
[1750533366567,0.6881,2390.0,2389.4,4.58707599]
[1750533366768,0.83674,2389.8,2389.6,0.83677]
[1750533367478,3.2078,2390.5,2389.7,3.2078]
[1750533367672,3.2078,2390.5,2389.8,0.6741]
[1750533367673,0.83668,2389.9,2389.8,0.6741]
[1750533367866,2.09168,2390.0,2389.4,8.50927599]
[1750533368176,2.09168,2390.0,2389.5,0.83681]
[1750533368469,0.8368,2389.6,2389.4,1.37927599]
[1750533368675,0.83682,2389.5,2389.4,2.21613599]
[1750533369168,0.694,2389.9,2389.4,1.37927599]
[1750533369377,0.83679,2389.6,2389.5,4.0446]
[1750533369578,0.83677,2389.7,2389.6,0.83679]
[1750533369874,0.83679,2389.6,2389.5,3.2078]
[1750533370069,0.83679,2389.6,2389.5,4.04462]
[1750533370976,0.83679,2389.6,2389.4,2.21610599]
[1750533371178,0.83679,2389.6,2389.5,3.2078]
[1750533372577,0.83677,2389.7,2389.6,0.83678]
[1750533374476,0.694,2389.9,2389.5,3.2078]
[1750533374673,0.694,2389.9,2389.6,1.3311]
[1750533374979,0.83675,2389.7,2389.6,2.16787]
[1750533375574,0.83679,2389.6,2389.5,4.0446]
[1750533375775,0.83677,2389.7,2389.6,0.83677]
[1750533375975,0.83677,2389.7,2389.6,2.16787]
[1750533376777,0.83675,2389.8,2389.7,0.83675]
[1750533377682,7.13,2390.1,2389.6,1.3311]
[1750533377979,0.83672,2389.8,2389.7,1.54113]
[1750533378378,0.8367,2389.9,2389.8,0.8367]
[1750533378568,0.83667,2390.0,2389.9,0.83667]
[1750533378776,0.83669,2389.9,2389.7,0.7044]
[1750533378975,0.83669,2389.9,2389.8,0.83669]
[1750533379278,0.83669,2389.9,2389.7,0.7044]
[1750533379279,0.83661,2390.1,2390.0,0.83664]
[1750533379479,0.83668,2389.9,2389.8,2.1811]
[1750533379973,0.83668,2389.9,2389.8,0.8367]
[1750533380174,0.83672,2389.8,2389.7,0.7044]
[1750533380473,0.83672,2389.8,2389.7,1.54115]
[1750533380782,3.2078,2390.2,2389.7,0.7044]
[1750533380978,0.83664,2390.1,2389.9,0.83666]
[1750533381176,0.6908,2390.4,2390.0,0.83665]
[1750533381474,0.83672,2389.8,2389.7,0.77287599]
[1750533381682,0.83672,2389.8,2389.7,0.06847599]
[1750533382779,2.09191,2389.7,2389.2,0.6754]
[1750533383083,2.6671,2389.7,2389.2,0.6754]
[1750533383283,0.83687,2389.4,2389.3,0.83689]
[1750533383483,2.6671,2389.7,2389.3,0.83689]
[1750533383484,0.83685,2389.5,2389.3,0.83689]
[1750533383784,0.83685,2389.5,2389.3,0.83686]
[1750533383977,0.6822,2389.7,2389.5,0.83681]
[1750533384176,0.83681,2389.6,2389.4,0.83683]
[1750533384380,0.83681,2389.6,2389.5,0.83682]
[1750533384682,0.83683,2389.5,2389.4,0.83684]
[1750533386187,0.83681,2389.6,2389.5,0.83681]
[1750533386484,0.83689,2389.3,2389.2,1.51231]
[1750533386885,2.0296,2389.8,2389.2,0.6754]
[1750533387079,3.8885,2389.9,2389.7,0.06847599]
[1750533387279,0.83672,2389.8,2389.7,0.06847599]
[1750533387584,0.83672,2389.8,2389.7,0.90522599]
[1750533387780,0.83672,2389.8,2389.7,0.06847599]
[1750533390981,1.9051679,2389.8,2389.7,0.06847599]
[1750533391180,8.2822679,2389.8,2389.7,0.06847599]
[1750533391486,3.2822679,2389.8,2389.7,0.06847599]
[1750533393996,10.3942679,2389.8,2389.7,0.06847599]
[1750533394298,0.83688,2389.4,2389.2,0.83691]
[1750533394604,0.83689,2389.3,2389.2,0.83691]
[1750533394991,0.83689,2389.3,2389.1,0.83695]
[1750533395193,5.9348,2389.6,2389.1,0.83694]
[1750533395388,0.83682,2389.5,2389.0,6.6707]
[1750533395596,13.0468,2389.6,2389.1,1.2943]
[1750533395792,1.4237,2389.5,2389.1,0.83695]
[1750533395995,0.8369,2389.3,2389.2,0.83693]
[1750533396394,1.4237,2389.5,2389.0,1.3704]
[1750533396593,0.8369,2389.3,2389.2,0.83692]
[1750533396897,0.83688,2389.4,2389.2,0.83692]
[1750533397401,0.83688,2389.4,2389.3,0.83689]
[1750533397595,0.83688,2389.4,2389.0,1.3704]
[1750533397596,9.892,2389.6,2389.2,3.2078]
[1750533397900,0.6965,2389.6,2389.5,0.83682]
[1750533398400,1.53329,2389.6,2389.5,0.83682]
[1750533398796,3.2078,2389.9,2389.3,2.09222]
[1750533398993,1.90479432,2389.8,2389.5,0.8368]
[1750533399193,1.06807432,2389.7,2389.5,0.8368]
[1750533399389,1.90482432,2389.7,2389.5,0.8368]
[1750533399591,0.83675,2389.8,2389.6,0.83679]
[1750533399897,1.0686138,2389.7,2389.6,0.83679]
[1750533400200,1.9053638,2389.7,2389.6,0.83679]
[1750533400393,1.0686138,2389.7,2389.6,0.83679]
[1750533401502,0.83672,2389.8,2389.7,0.06847599]
[1750533401693,1.90540482,2389.8,2389.7,0.06847599]
[1750533402701,1.06868482,2389.8,2389.7,0.90522599]
[1750533402892,3.2078,2389.9,2389.8,0.83672]
[1750533403087,4.27651085,2389.9,2389.8,0.83672]
[1750533403293,3.2078,2389.9,2389.8,0.83672]
[1750533403502,3.2078,2390.2,2390.1,0.83658]
[1750533403695,4.27660814,2390.2,2390.1,0.83658]
[1750533403894,3.2078,2390.2,2390.1,0.83658]
[1750533404099,0.83656,2390.3,2390.1,0.83658]
[1750533404298,0.83656,2390.3,2390.1,0.8366]
[1750533404594,0.83661,2390.1,2390.0,0.6952]
[1750533404795,0.8366,2390.2,2390.0,1.53185]
[1750533405098,3.2078,2390.5,2390.0,0.6952]
[1750533405302,3.2078,2390.9,2390.8,0.83637]
[1750533405499,5.11391068,2390.9,2390.8,0.83637]
[1750533405696,11.13504,2391.2,2390.8,3.2078]
[1750533405901,0.83627,2391.1,2390.9,2.0061]
[1750533406097,10.2988,2391.2,2391.1,0.83626]
[1750533407108,3.2078,2391.2,2391.1,2.17846]
[1750533407708,3.8789,2391.6,2391.3,0.83619]
[1750533407896,3.2078,2391.6,2391.3,0.83616]
[1750533408211,3.2078,2391.6,2391.5,0.83612]
[1750533408505,3.2078,2391.6,2391.4,0.83614]
[1750533408912,3.2078,2391.6,2391.5,0.83612]
[1750533409208,3.2078,2391.6,2391.3,1.3556]
[1750533409507,4.0439,2391.6,2391.4,0.83615]
[1750533410111,0.83612,2391.5,2391.3,2.19177]
[1750533410604,5.29775,2392.0,2391.3,6.3556]
[1750533410605,3.2078,2392.0,2391.3,6.3556]
[1750533410810,3.2078,2392.0,2391.9,0.83598]
[1750533411109,11.13267,2392.3,2392.1,0.83589]
[1750533411302,10.2968,2392.3,2392.1,0.83589]
[1750533411501,11.13265,2392.3,2392.0,3.57983]
[1750533411701,3.2078,2392.3,2392.1,0.83588]
[1750533411903,3.2078,2392.3,2392.1,2.21239]
[1750533412302,3.2078,2392.3,2392.2,0.83588]
[1750533412503,4.04364,2392.3,2392.1,2.21239]
[1750533412811,4.04364,2392.3,2392.0,1.3674]
[1750533412812,0.83591,2392.1,2392.0,0.6991]
[1750533413107,0.8359,2392.2,2392.0,1.53505]
[1750533413307,0.83591,2392.1,2392.0,1.53505]
[1750533413608,4.04365,2392.3,2392.1,0.83588]
[1750533413802,4.04365,2392.3,2392.0,2.0756]
[1750533414002,4.04365,2392.3,2392.1,0.8359]
[1750533414204,0.83588,2392.2,2392.1,2.2082]
[1750533414605,0.83588,2392.2,2392.1,1.3723]
[1750533414909,4.04366,2392.3,2392.1,2.20821]
[1750533415109,0.83588,2392.2,2392.1,1.3723]
[1750533415307,4.04367,2392.3,2392.1,2.20821]
[1750533415705,0.83588,2392.2,2392.1,2.20821]
[1750533415906,0.83588,2392.2,2392.1,1.3723]
[1750533416105,3.2078,2392.3,2392.1,1.3723]
[1750533416810,0.83588,2392.2,2392.1,1.3723]
[1750533417006,3.2078,2392.3,2392.1,1.3723]
[1750533417208,3.2078,2392.9,2392.3,2.08962]
[1750533417402,3.2078,2392.9,2392.8,0.83567]
[1750533417598,8.16389617,2392.9,2392.8,0.83567]
[1750533417808,8.99952617,2392.9,2392.4,2.0994]
[1750533418211,4.95609617,2392.5,2391.6,3.2078]
[1750533418400,4.95609617,2392.5,2391.6,0.6431]
[1750533418401,4.95609617,2391.9,2391.6,0.6431]
[1750533418709,3.2078,2391.7,2391.2,0.692]
[1750533419012,4.95609617,2391.3,2391.2,1.52823]
[1750533420710,4.95609617,2391.3,2391.2,0.692]
[1750533420910,4.95609617,2391.3,2391.2,1.52823]
[1750533422407,5.79228617,2391.3,2391.1,3.2078]
[1750533422605,4.95609617,2391.3,2391.2,0.83623]
[1750533422912,0.83616,2391.4,2391.2,0.83622]
[1750533423104,0.83616,2391.4,2391.1,3.2078]
[1750533423105,0.83616,2391.4,2391.1,0.83625]
[1750533423306,0.83621,2391.3,2391.2,0.83623]
[1750533423513,4.95609617,2391.5,2391.3,0.83619]
[1750533423814,4.95609617,2391.5,2391.2,0.83621]
[1750533424209,5.79225617,2391.5,2391.2,0.83621]
[1750533424416,0.83618,2391.4,2391.2,0.83622]
[1750533425212,4.95609617,2391.5,2391.1,0.06847599]
[1750533425416,5.79232617,2391.2,2391.1,0.06847599]
[1750533426019,4.95609617,2391.2,2391.1,0.90473599]
[1750533426211,8.16389617,2391.4,2391.3,0.83619]
[1750533426516,9.00005617,2391.4,2391.2,0.83621]
[1750533426710,8.16389617,2391.4,2391.3,0.83619]
[1750533427113,12.87817617,2391.7,2391.2,3.2078]
[1750533427308,0.83609,2391.6,2391.5,0.8361]
[1750533427512,12.87816617,2391.7,2391.6,0.83609]
[1750533427704,0.83609,2391.6,2391.5,0.8361]
[1750533427919,12.04209617,2391.7,2391.5,0.83612]
[1750533428113,0.83611,2391.6,2391.5,0.83612]
[1750533428312,0.83612,2391.5,2391.4,0.83614]
[1750533428512,0.83611,2391.6,2391.5,0.83612]
[1750533428919,4.95609617,2391.7,2391.6,0.83609]
[1750533429217,3.2078,2391.8,2391.7,0.83605]
[1750533429812,5.79204617,2392.0,2391.9,0.83598]
[1750533430721,4.95609617,2392.0,2391.9,0.83598]
[1750533431021,2.44969201,2393.0,2391.9,0.83598]
[1750533431022,5.79184617,2392.6,2392.4,0.83578]
[1750533431218,0.8358,2392.5,2392.3,0.83583]
[1750533431412,5.79185617,2392.6,2392.4,0.83581]
[1750533431718,5.79185617,2392.6,2392.4,4.04361]
[1750533431920,0.83577,2392.5,2392.3,0.83583]
[1750533432314,8.16389617,2392.9,2392.4,3.2078]
[1750533432516,4.95609617,2392.9,2392.7,3.2078]
[1750533432712,4.95609617,2392.9,2392.8,0.83567]
[1750533433518,2.0257,2393.4,2392.8,12.085]
[1750533433708,2.0257,2393.4,2393.3,0.83549]
[1750533433709,5.61319617,2393.4,2393.3,0.83549]
[1750533434022,5.79155617,2393.4,2393.2,0.83551]
[1750533434319,5.79153617,2393.5,2393.3,0.83547]
[1750533434514,4.95609617,2393.5,2393.4,0.83546]
[1750533435023,4.95609617,2393.5,2393.3,0.83547]
[1750533435323,5.79152617,2393.5,2393.2,0.8355]
[1750533435720,4.95609617,2393.5,2393.1,1.3478]
[1750533435917,3.2078,2393.6,2393.4,0.83546]
[1750533436117,0.83544,2393.5,2393.3,0.83547]
[1750533436316,0.83544,2393.5,2393.2,10.65232]
[1750533436822,4.95609617,2393.3,2392.9,7.067]
[1750533437120,3.2078,2393.6,2392.9,0.83562]
[1750533437121,4.95609617,2393.0,2392.9,0.83562]
[1750533437322,5.79169617,2393.0,2392.9,0.83562]
[1750533437525,5.79169617,2393.0,2392.8,7.90265]
[1750533437727,5.79169617,2393.0,2392.9,0.83564]
[1750533437918,4.95609617,2393.0,2392.9,0.83564]
[1750533438315,5.79171617,2393.0,2392.8,7.90265]
[1750533438515,5.79171617,2393.0,2392.8,7.067]
[1750533438711,4.95609617,2393.0,2392.6,8.4857]
[1750533438925,4.95609617,2392.7,2392.6,7.90274]
[1750533439625,8.16389617,2392.7,2392.3,0.83583]
[1750533439825,0.83587,2392.3,2392.0,1.4003]
[1750533440028,0.83586,2392.3,2392.2,0.83588]
[1750533440218,4.95609617,2392.4,2392.3,0.83584]
[1750533440520,4.95609617,2392.4,2392.2,0.83586]
[1750533440721,4.95609617,2392.4,2392.3,0.83584]
[1750533441428,0.83593,2392.1,2392.0,0.83595]
[1750533441619,4.95609617,2392.1,2391.7,0.83603]
[1750533441928,0.83605,2391.7,2391.5,0.83609]
[1750533442123,5.79212617,2391.8,2391.6,0.83607]
[1750533442318,4.95609617,2391.8,2391.7,0.83605]
[1750533442730,4.95609617,2391.8,2391.6,0.83606]
[1750533443025,1.3819,2392.0,2391.4,3.2078]
[1750533443227,0.83601,2391.9,2391.7,0.83603]
[1750533443624,0.83608,2391.7,2391.4,3.2078]
[1750533443924,1.3819,2392.0,2391.6,0.83608]
[1750533444129,0.83605,2391.7,2391.6,0.83608]
[1750533444429,0.83605,2391.7,2391.5,0.8361]
[1750533444723,0.83604,2391.8,2391.6,0.83609]
[1750533444931,1.3819,2392.0,2391.4,3.2078]
[1750533445230,1.3819,2392.0,2391.4,4.6269]
[1750533445429,0.83599,2391.9,2391.4,4.6269]
[1750533445729,0.83602,2391.8,2391.4,4.6269]
[1750533446323,0.83602,2391.8,2391.6,0.83607]
[1750533446530,0.83602,2391.8,2391.7,0.83605]
[1750533446733,0.83601,2391.9,2391.8,0.83602]
[1750533447028,0.83603,2391.8,2391.7,0.83604]
[1750533447331,0.83605,2391.7,2391.6,0.83607]
[1750533447629,8.4489,2392.0,2391.7,0.83604]
[1750533447830,0.83604,2391.8,2391.6,0.83607]
[1750533448431,9.1535,2392.0,2391.6,0.83607]
[1750533448631,0.83605,2391.7,2391.6,0.83607]
[1750533448828,0.83605,2391.7,2391.4,0.83615]
[1750533448829,0.83614,2391.5,2391.4,0.83615]
[1750533449044,5.69195533,2391.7,2391.1,3.2078]
[1750533449334,0.83614,2391.5,2391.3,0.83617]
[1750533449630,7.02015533,2391.7,2391.3,0.83617]
[1750533449932,0.83612,2391.5,2391.3,0.83617]
[1750533450131,0.83616,2391.4,2391.2,0.83621]
[1750533450331,7.90311,2391.6,2391.4,0.83616]
[1750533450523,0.83616,2391.4,2391.3,0.83618]
[1750533450726,0.83614,2391.5,2391.4,0.83616]
[1750533451225,7.067,2391.6,2391.5,0.83612]
[1750533451427,0.83612,2391.6,2391.4,0.83614]
[1750533451628,0.83612,2391.6,2391.5,0.83612]
[1750533452534,0.83613,2391.5,2391.4,0.83615]
[1750533452936,0.83611,2391.6,2391.5,0.83612]
[1750533453632,3.2078,2391.8,2391.4,3.2078]
[1750533453822,3.2078,2391.8,2391.5,0.8361]
[1750533454027,0.83609,2391.6,2391.5,0.8361]
[1750533454833,7.78209533,2391.7,2391.1,3.2078]
[1750533455137,0.83619,2391.4,2391.2,0.83621]
[1750533455333,0.83623,2391.2,2391.1,10.2758]
[1750533455640,0.83623,2391.3,2391.1,11.11205]
[1750533456032,0.83622,2391.3,2391.1,11.11205]
[1750533456432,3.2078,2391.5,2391.3,0.83618]
[1750533456639,0.83616,2391.4,2391.3,0.83618]
[1750533457045,3.2078,2391.5,2391.4,0.83616]
[1750533457339,0.83617,2391.4,2391.3,0.83618]
[1750533458339,3.2078,2391.5,2391.4,0.83616]
[1750533458340,4.04395,2391.5,2391.4,0.83616]
[1750533458540,4.04395,2391.5,2391.3,0.83617]
[1750533459328,3.2078,2391.5,2391.4,0.83616]
[1750533459643,4.04392,2391.5,2391.4,0.83616]
[1750533460141,3.2078,2391.5,2391.4,0.83616]
[1750533460641,4.04392,2391.5,2391.4,0.83616]
[1750533460841,3.2078,2391.5,2391.4,0.83616]
[1750533461029,0.83607,2391.7,2391.3,2.77026]
[1750533461234,0.83616,2391.4,2391.3,0.6798]
[1750533461430,12.36712,2391.5,2390.9,0.8363]
[1750533461635,0.8363,2391.0,2390.9,0.8363]
[1750533461831,5.69195533,2391.2,2390.8,3.8823]
[1750533462033,0.83626,2391.1,2391.0,0.8363]
[1750533462239,0.83626,2391.1,2390.8,3.8823]
[1750533462240,6.52820533,2391.2,2391.1,0.83626]
[1750533462438,0.83617,2391.4,2391.3,0.83618]
[1750533462641,0.83621,2391.3,2391.2,0.83621]
[1750533462938,0.83621,2391.3,2391.2,0.83622]
[1750533463244,0.8362,2391.3,2391.2,0.8362]
[1750533463844,0.83619,2391.3,2391.2,0.8362]
[1750533464138,3.2078,2391.4,2390.9,1.3811]
[1750533464336,0.83621,2391.3,2391.2,0.83623]
[1750533464748,3.2078,2391.4,2391.3,0.83619]
[1750533465743,4.04396,2391.4,2391.3,0.83619]
[1750533465942,4.04396,2391.4,2391.3,2.17399]
[1750533466246,4.95917066,2391.7,2391.6,0.83609]
[1750533466444,4.5388,2391.9,2391.8,0.83602]
[1750533466445,3.2078,2391.9,2391.8,0.83602]
[1750533467539,3.2078,2391.9,2391.6,1.3378]
[1750533467540,8.16697066,2391.9,2391.6,1.3378]
[1750533467741,0.83604,2391.8,2391.6,2.17387]
[1750533468348,8.16697066,2391.9,2391.6,1.3378]
[1750533468349,9.00298066,2391.9,2391.6,1.3378]
[1750533468536,0.83603,2391.8,2391.6,1.3378]
[1750533468735,8.16697066,2391.9,2391.6,1.3378]
[1750533468941,0.83603,2391.8,2391.6,1.3378]
[1750533469149,0.83605,2391.7,2391.6,1.3378]
[1750533469951,0.83605,2391.7,2391.5,7.055]
[1750533470248,0.83608,2391.7,2391.5,7.055]
[1750533470447,0.83608,2391.7,2391.6,0.06847599]
[1750533472144,0.83608,2391.7,2391.6,1.44847599]
[1750533473151,0.83608,2391.7,2391.6,0.06847599]
[1750533473556,0.83626,2391.1,2391.0,7.89029]
[1750533474058,0.83626,2391.1,2391.0,8.434]
[1750533474245,0.83626,2391.1,2391.0,1.38]
[1750533474449,0.8363,2391.0,2390.9,3.8693]
[1750533474751,0.8363,2391.0,2390.9,0.6615]
[1750533476149,0.83623,2391.2,2391.1,0.83625]
[1750533476745,3.2078,2391.3,2391.2,0.83623]
[1750533476952,4.04402,2391.3,2391.1,0.83624]
[1750533477143,0.83623,2391.2,2391.0,0.83628]
[1750533477343,0.83623,2391.2,2391.1,1.4169]
[1750533477545,0.83626,2391.1,2390.9,1.49781]
[1750533477745,0.83626,2391.1,2391.0,0.8363]
[1750533477943,0.83625,2391.2,2391.0,0.8363]
[1750533478150,0.83626,2391.1,2391.0,2.2414]
[1750533479261,8.16697066,2391.3,2391.0,1.4051]
[1750533479451,0.83626,2391.1,2391.0,2.24138]
[1750533479756,3.2078,2391.3,2391.0,1.4051]
[1750533479954,3.2078,2391.3,2391.2,0.83623]
[1750533480156,4.04399,2391.3,2391.2,0.83623]
[1750533480557,0.83624,2391.2,2391.1,0.83624]